Cogmind - Beta 14 @@@ ROGUE MODE // 2024.08.07 @ 02:15:02 Player: Sirfrogs Result: Destroyed by G-47 Trooper with Particle Gun Performance ------------- Evolutions (0) 0 Regions Visited (2) 400 Robots Destroyed (31) 155 Value Destroyed (698) 698 Prototype IDs (0) 0 Alien Tech Used (0) 0 Bonus (0) 0 TOTAL SCORE: 1253 Bonus ------- None Cogmind --------- Core Integrity 0/250 Matter 264/300 Energy 160/160 System Corruption 8% Temperature Cool (27) Movement Core (450) Ox8 Location -10/Mines Parts ------- > --- POWER (1) -------- Light Nuclear Core > --- PROPULSION (2) --- (None) > --- UTILITY (2) ------ Large Storage Unit > --- WEAPON (2) ------- (None) > --- INVENTORY (15) --- Ion Engine Light Ion Engine Large Storage Unit Signal Interpreter Utility Shielding Tractor Beam Medium Laser Medium Laser Light Assault Rifle Light Assault Rifle Light Assault Rifle Makeshift Hammer Peak State ------------ > --- POWER ------------ Ion Engine > --- PROPULSION ------- Light Treads Light Treads > --- UTILITY ---------- Large Storage Unit Sensor Array > --- WEAPON ----------- Particle Gun Makeshift Hammer > --- INVENTORY -------- Ion Engine Light Ion Engine Light Nuclear Core Large Storage Unit Signal Interpreter Utility Shielding Tractor Beam Medium Laser Medium Laser Light Assault Rifle Light Assault Rifle Light Assault Rifle Light Assault Rifle [Rating: 12] Favorites ----------- Power Ion Engine Engine Ion Engine Power Core Light Nuclear Core Propulsion Light Treads Treads Light Treads Utility Large Storage Unit Device Sensor Array Storage Large Storage Unit Protection Propulsion Shielding Weapon Light Assault Rifle Energy Gun Particle Gun Ballistic Gun Light Assault Rifle Launcher Grenade Launcher Impact Weapon Makeshift Hammer Build | -11 -10 -10 ------- Run | Yrd Mat Min Slots Evolved . | . . . Power . | . . . Propulsion . | . . . Utility . | . . . Weapon . | . . . Parts Attached 28 | 7 14 7 Power 5 | 1 3 1 Engine 4 | 1 3 . Core 1 | . . 1 Reactor . | . . . Propulsion 4 | 2 2 . Treads 4 | 2 2 . Leg . | . . . Wheel . | . . . Hover . | . . . Flight . | . . . Utility 6 | 2 3 1 Device 1 | . . 1 Storage 4 | 2 2 . Processor . | . . . Hackware . | . . . Protection 1 | . 1 . Artifact . | . . . Weapon 13 | 2 6 5 Energy Gun 2 | 1 1 . Energy Cannon . | . . . Ballistic Gun 6 | 1 3 2 Ballistic Cannon . | . . . Launcher 4 | . 2 2 Special Weapon . | . . . Impact Weapon 1 | . . 1 Slashing Weapon . | . . . Piercing Weapon . | . . . Special Melee Weapon . | . . . Unidentified Prototypes . | . . . Parts Lost 10 | . 2 8 Power 2 | . 1 1 Propulsion 2 | . . 2 Utility 2 | . . 2 Weapon 4 | . 1 3 Highest Loss Streak 5 | . 1 5 To Critical Strikes . | . . . Average Slot Usage (%) 92 | . 99 79 Engine 11 | . 13 7 Core 2 | . . 6 Treads 23 | . 27 15 Device 1 | . . 4 Storage 18 | . 21 14 Protection 5 | . 6 2 Energy Gun 9 | . 7 14 Ballistic Gun 16 | . 19 11 Launcher 1 | . . 1 Peak Build Rating 12 | 7 9 12 Average Rating 7 | 4 7 8 On Entrance 5 | . 7 9 Naked Turns . | . . . Heaviest Build 32 | 18 32 32 Greatest Support 40 | 40 40 40 Greatest Overweight (x) 9 | . 1 9 Average Overweight (x) . | . . 2 Largest Inventory Capacity 15 | 8 15 15 Average Capacity 13 | 6 13 15 Most Carried 14 | 5 14 14 Average Carried 10 | 2 9 12 Final Capacity 15 | 8 15 15 Final Carried 12 | 4 12 12 Class Distribution -------------------- 100% | Mutant Dominant Class ---------------- Mutant | -10/Materials Mutant | -10/Mines Resources | -11 -10 -10 ----------- Run | Yrd Mat Min Matter Collected 631 | 272 274 85 Remotely . | . . . Salvage Created 896 | 61 721 114 Parts 63 | 3 45 15 Haulers Intercepted . | . . . Recyclers Shooed 2 | . 2 . Parts Field Recycled . | . . . Retrieved Matter . | . . . Parts Self-Destructed . | . . . Prevented . | . . . Kills | -11 -10 -10 ------- Run | Yrd Mat Min Combat Hostiles Destroyed 24 | . 18 6 Guns 17 | . 13 4 AOE 7 | . 5 2 Classes Destroyed 7 | 1 5 1 Worker 1 | . 1 . Recycler 3 | 1 2 . Operator 1 | . 1 . Watcher 3 | . 3 . Swarmer 9 | . 6 3 Grunt 14 | . 12 2 Assembled 1 | . . 1 Best Kill Streak 6 | 1 6 3 Combat Bots Only 4 | . 4 3 Max Kills in Single Turn 3 | 1 3 2 Gunslinging . | . . . Exploded 2 | . 2 1 Melee . | . . . Uniques/NPCs Destroyed . | . . . Combat | -11 -10 -10 -------- Run | Yrd Mat Min Hostile Shots Fired 138 | . 81 57 Missed 38 | . 25 13 Damage Taken 1316 | . 635 681 Core 259 | . 132 127 Absorbed by Shields . | . . . Redirected to Shielding 54 | . 26 28 Regen/Repaired (Parts) 104 | . 104 . Core Remaining (%) 100 | 100 . . Volleys Fired 85 | 2 55 28 Largest 2 | 2 2 2 Hottest 95 | 60 85 95 Shots Fired 164 | 4 109 51 Gun 152 | 4 102 46 Cannon . | . . . Launcher 12 | . 7 5 Special . | . . . Kinetic 93 | 2 73 18 Thermal 50 | . 22 28 Explosive 12 | . 7 5 Electromagnetic 9 | 2 7 . Robot Hit Streak 10 | 2 10 6 Robot Miss Streak 9 | 2 9 5 Penetration Max . | . . . Secondary Targets 3 | . 2 1 Max Gunslinging Chain 1 | . 1 1 Shots Hit Robots 91 | 2 64 25 Core Hits 59 | 2 45 12 Critical Kills . | . . . Critical Parts Destroyed . | . . . Critical Strikes 1 | . 1 . Corrupt 1 | . 1 . Melee Attacks 3 | . . 3 Impact 3 | . . 3 Slashing . | . . . Piercing . | . . . Sneak Attacks . | . . . Combat Hostiles . | . . . Follow-up Attacks . | . . . Damage Inflicted 1727 | 23 1289 415 Guns 988 | 22 674 292 Cannons . | . . . Explosions 726 | . 605 121 Melee . | . . . Ramming 13 | 1 10 2 Kinetic 442 | 9 364 69 Thermal 464 | . 241 223 Explosive 726 | . 605 121 Electromagnetic 82 | 13 69 . Impact . | . . . Slashing . | . . . Piercing . | . . . Highest Corruption 8 | . . 8 Average Corruption 7 | . . 7 Corruption Purged . | . . . Corruption Blocked . | . . . Effects 9 | . . 9 Message Errors 2 | . . 2 Matter Fused 3 | . . 3 Heat Flow Errors 2 | . . 2 Energy Discharges 1 | . . 1 Data Loss (minor) 1 | . . 1 Overload Shots . | . . . Overflow Damage 60 | . 56 4 Projectiles . | . . . Explosions 60 | . 56 4 Melee . | . . . Knockbacks 1 | . 1 . Impact 1 | . 1 . Kinetic . | . . . Secondary . | . . . Self-Inflicted Damage 41 | . . 41 Shots 2 | . . 2 Rammed 4 | 1 2 1 Targets Rammed 4 | 1 2 1 Kicked . | . . . Crushed . | . . . Highest Temperature 399 | 20 274 399 Average Temperature 100 | 15 60 143 Received Heat Transfer 672 | . 267 405 Siege Activations . | . . . Robots Corrupted . | . . . Combat Hostiles . | . . . Parts Fried . | . . . Impact Corruptions . | . . . Robots Melted . | . . . Combat Hostiles . | . . . Parts Melted . | . . . Heat Transferred 1110 | . 592 518 Parts Sabotaged . | . . . Parts Stolen . | . . . Parts Stripped . | . . . Power Chain Reactions . | . . . Alert | -11 -10 -10 ------- Run | Yrd Mat Min Peak Influence 199 | 5 198 199 Initial 39 | . 3 39 Average 66 | 1 61 85 Maximum Alert Level . | . . . Low Security (%) 100 | 100 100 100 Level 1 . | . . . Level 2 . | . . . Level 3 . | . . . Level 4 . | . . . Level 5 . | . . . High Security . | . . . Max Security . | . . . Squads Dispatched 4 | . 4 . Investigation 2 | . 2 . Extermination . | . . . Reinforcement 2 | . 2 . Assault . | . . . Garrison . | . . . Intercept . | . . . Searches Triggered . | . . . Construction Impeded . | . . . Haulers Reinforced . | . . . Active Scanning Responses . | . . . Cargo Convoy Interrupts . | . . . Stealth | -11 -10 -10 --------- Run | Yrd Mat Min Distress Signals 2 | . 2 . Communications Jammed . | . . . Distress Signals . | . . . Times Spotted 36 | . 25 11 Peak Tracking Total 4 | . 4 4 Tactical Retreats 2 | . . 2 Traps | -11 -10 -10 ------- Run | Yrd Mat Min Traps Triggered 2 | . 2 . Indirectly . | . . . Trap Hack Attempts . | . . . Triggered . | . . . Disarmed . | . . . Reprogrammed . | . . . Reused . | . . . Traps Extracted . | . . . Installed . | . . . Triggered . | . . . Machines | -11 -10 -10 ---------- Run | Yrd Mat Min Machines Disabled 1 | . . 1 Max in Single Turn 1 | . . 1 Machines Repaired . | . . . Machines Dismantled . | . . . Machines Sabotaged . | . . . Overloaded Fab Kills . | . . . Hacking | -11 -10 -10 --------- Run | Yrd Mat Min Machines Accessed 8 | . 8 . Terminals 6 | . 6 . Fabricators . | . . . Repair Stations 1 | . 1 . Recycling Units 1 | . 1 . Scanalyzers . | . . . Garrison Access . | . . . Total Hacks 23 | . 23 . Successful 8 | . 8 . Failed 15 | . 15 . Catastrophic 2 | . 2 . Database Lockouts . | . . . Manual 9 | . 9 . Terminals 16 | . 16 . Fabricators . | . . . Repair Stations 5 | . 5 . Recycling Units 2 | . 2 . Scanalyzers . | . . . Garrison Access . | . . . Terminal Hacks 4 | . 4 . Record 1 | . 1 . Branch Access Points 1 | . 1 . Alert Level 1 | . 1 . Zone Layout 1 | . 1 . Fabricator Hacks . | . . . Repair Station Hacks 3 | . 3 . Scan Component 2 | . 2 . Repair 1 | . 1 . Recycling Unit Hacks . | . . . Scanalyzer . | . . . Garrison Access Hacks . | . . . Unauthorized Hacks 1 | . 1 . Terminals 1 | . 1 . Operators 1 | . 1 . Fabricators . | . . . Repair Stations . | . . . Recycling Units . | . . . Scanalyzers . | . . . Garrison Access . | . . . Data Cores Recovered . | . . . Used . | . . . Hacking Detections 7 | . 7 . Full Trace Events 3 | . 3 . Feedback Events . | . . . Feedback Blocked . | . . . Robot Schematics Acquired . | . . . Robots Built . | . . . Authchips . | . . . Time . | . . . Total Robot Build Rating . | . . . Part Schematics Acquired . | . . . Parts Built . | . . . Authchips . | . . . Time . | . . . Total Part Build Rating . | . . . Parts Repaired 1 | . 1 . Time 26 | . 26 . Parts Recycled . | . . . Recycled Matter . | . . . Retrieved Matter . | . . . Retrieved Components . | . . . Parts Scanalyzed . | . . . Part Schematics Acquired . | . . . Parts Damaged . | . . . Bothacking | -11 -10 -10 ------------ Run | Yrd Mat Min Used RIF Installer . | . . . Robots Hacked . | . . . Non-combat . | . . . Combat . | . . . Robot Hacks Applied . | . . . Relay Couplers Released . | . . . Fabnet Peak Effective % . | . . . Robots Rewired . | . . . Allies Hacked . | . . . Hacks Repelled . | . . . Allies | -11 -10 -10 -------- Run | Yrd Mat Min Total Allies . | . . . Largest Group . | . . . Highest-Rated Group . | . . . Highest-Rated Ally . | . . . Total Orders . | . . . Ally Attacks . | . . . Total Damage . | . . . Kills . | . . . Allies Corrupted . | . . . Allies Melted . | . . . Intel | -11 -10 -10 ------- Run | Yrd Mat Min Robot Analysis Total . | . . . Derelict Logs Recovered . | . . . Drone Launches . | . . . Drone Recoveries . | . . . Exploration | -11 -10 -10 ------------- Run | Yrd Mat Min Turns Passed 2328 | 111 1436 781 Spaces Moved 1069 | 59 735 275 Core 74 | 7 . 67 Treads 995 | 52 735 208 Legs . | . . . Wheels . | . . . Hover . | . . . Flight . | . . . Fastest Speed 50 | 50 160 160 Average Speed 180 | 146 160 242 Slowest Speed 500 | 160 240 500 Overloaded Moves . | . . . Propulsion Burnouts . | . . . Robots Hopped . | . . . Cave-ins Triggered . | . . . Exploration Rate (%) 52 | 4 96 56 Regions Visited 2 Branch Regions 1 Pre-discovered Areas . | . . . Known Exits Taken 1 | . 1 . Unknown Exits Taken 1 | 1 . . Scrap Searched 1 | . . 1 Spaces Dug . | . . . Terrain Destroyed 59 | . 33 26 Melee . | . . . Projectile . | . . . AOE 59 | . 33 26 Terrain Rammed . | . . . Walls Destroyed . | . . . Machines Disabled . | . . . Actions | -11 -10 -10 --------- Run | Yrd Mat Min Total 1309 | 79 897 333 Wait 91 | . 75 16 Move 1067 | 58 734 275 Hop . | . . . Pick Up 27 | 11 13 3 Fast Attach 1 | . 1 . Attach 15 | 7 5 3 Detach 1 | . 1 . Swap 12 | . 8 4 Drop 3 | . 3 . Fire 85 | 2 55 28 Melee 3 | . . 3 Ram 1 | . . 1 Kick . | . . . Crush 3 | 1 2 . Escape Stasis . | . . . Rewire . | . . . Trap . | . . . Miscellaneous . | . . . Route ------- -11/Scrapyard -10/Materials (discovered 5 exits: [*Mat x3] / *Min x2) -10/Mines History --------- Turn | Location | Event 4 | -11/Scrapyard | Discovered new exit (range 15) 112 | -11/Scrapyard | Entered Materials 147 | -10/Materials | Discovered new exit (range 5) 303 | -10/Materials | Build established: Mutant 466 | -10/Materials | Discovered new exit (range 10) 869 | -10/Materials | Discovered new exit (range 10) 1072 | -10/Materials | Discovered new exit (range 16) 1078 | -10/Materials | Identified exit to Mines 1148 | -10/Materials | Repaired Lgt. Treads 1170 | -10/Materials | Core integrity fell below 50% 1375 | -10/Materials | Discovered new exit (range 16) 1548 | -10/Materials | Entered Mines 1805 | -10/Mines | A weapon hastily lodged in a ceiling crevice suddenly fell to the ground 1855 | -10/Mines | Assembled infested the area 1978 | -10/Mines | Core integrity fell below 20% 2005 | -10/Mines | Lost 5 parts (1p2n1u1w) 2329 | -10/Mines | Destroyed by G-47 Trooper with Particle Gun Last Messages --------------- 01994_ System corrupted: Energy discharge (-57). 02033_ System corrupted: Heat flow error (+107). 02048_ System corrupted: Matter fused (-9). 02120_ VXOCSDLEXWIOIX3KX<8P%ZH5F J 02145_ K-01 Serf collects debris. 02171_ Slammed into K-01 Serf. 02175_ System corrupted: Component data lost. 02183_ U-05 Engineer lays Concrete. 02189_ U-05 Engineer builds a Wall. 02213_ System corrupted: Matter fused (-10). 02217_ U-05 Engineer builds a Wall. 02248_ /NB IMJY>G0NXCVQS &LEAKEFQM 02251_ U-05 Engineer builds a Wall. 02261_ Acquired 6 matter. 02263_ U-05 Engineer builds a Wall. 02303_ System corrupted: Heat flow error (+149). 02321_ Particle Gun destroyed. 02324_ Lgt. Assault Rifle destroyed. 02326_ Acquired 10 matter. 02329_ Critical hit (Burn: +37). Map ----- +----------------------------------------------------+ | | | | | | | | | | | ???????????????????????????????????????? | | ???????????????????????????????????????? | | ???????????????????????????????????????? | | ???????????????????????????????????????? | | ???????####????????????????????????????? | | ??????## ##???????????????????????????? | | ####### ##????###???????????????????? | | ##?## ##??????????????????? | | ### #??????????????????? | | ####### #??????????????????? | | #?????### "####???###??????????? | | #???????## ####?? d #??????????? | | #????????# ##????? """ #??????????? | | #???????### ###????? """ ???????????? | | #??????## # # #??????""" ???????????? | | ##?????# ## ###?????? ????????????? | | #?????### #????????# #????????????? | | #????# # ##????????# g#??#?????????? | | #????### ##????????# ## ######????? | | ##??????# ##########g "%"?????? | | ####???# @#????????????? | | #???# #????????????? | | ## #??## # ######## #???????????? | | ##??#??### ## #???????##???????????? | | ##??????### # # #????????????????????? | | #?????????##### # #????????????????????? | | ??????????????? # #????????????????????? | | ???#???????????## #????????????????????? | | ???# ???????????# #????????????????????? | | #??# ############ #????????????????????? | | #??# #????????????????????? | | #??### ### ### ## #????????????????????? | | #????# ### #?# ## #????????????????????? | | ?????# ### ## #????????????????????? | | ?????## ## ## ????????????????????? | | ??????## ## ####????????????????????? | | ??????## ## #???????????????????????? | | ####### ### #???????????????????????? | | # ### #???????????????????????? | | #???????????????????????? | | ####???????????????????????? | | #### #??????????????????????????? | | ##??### ##??????????????????????????? | | ##?????#####???????????????????????????? | | #??????????????????????????????????????? | +----------------------------------------------------+ Best States ------------- Heat Dissipation 25 Energy Generation 14 Energy Capacity 250 Matter Stores 300 Matter Capacity 300 Sight Range 16 Robot Scan Range 14 Terrain Scan Density 10 Propulsion Shielding 33 Evasion (%) 40 Recoil Reduction 2 Item Schematics ----------------- None Robot Schematics ------------------ None Fabricated ------------ Nothing Alien Tech Used ----------------- None Achievements -------------- None Challenges ------------ None Game ------ Seed AlloySeismicBallwheel Manual? 0 Play Time 00:24:30 Cumulative 2.5 hours Start 2024.08.07 @ 01:51:47 End 2024.08.07 @ 02:15:02 Sessions 1 Manual Loads 0 Difficulty Rogue Special Mode None Game No. 5 Rogue 1 Adventurer 0 Explorer 4 Win Type - Total 0 Types 0/0/0/0/0/0/0/0/0 Lore% 6 Gallery% 10 Achievement% 13 Wizard Run 0 Options --------- Layout 1 ASCII 0 Keyboard 0 Movement Arrows Keybinds 0 Fullscreen 2 Font 24/Smallcaps Map View 50x35 Zoom Use 0% Tactical HUD 1 Map Filters NONE Filters NONE Steam 1 RUN: 47e6b86b-0173-4e75-9e1b-8bec361b2a32